{"text_format":"2","workbook":"xlsx","n_sheets":3,"sheets":["Rechner","Drop-Downs","Berechnung"],"not_rendered":{"charts":0,"images":2,"macros":0,"external_links":0,"defined_names":1,"comments":0,"pivot_tables":0},"unopened":[],"bounds":{"document_bytes":16777216,"sheet_cells":100000,"run_cost":"one","rows_first":2000,"rows_last":500,"rows_between":2000,"halvings":0,"cell_chars":16384,"cell_head_chars":4096},"cells_cut":0,"cells_raw":0,"read":"whole","date_system":"1900"}

{"sheet":"Rechner","index":0,"n_rows":26,"n_cols":7,"rows_kept":26,"cut":false,"hidden":false,"merged":[[17,3,19,4],[21,3,23,4],[25,3,25,4]]}
[]
[null,null,"ÖTV ITN AUSTRIA - RECHNER Nur für Doppel-Spiele!"]
[null,null,"gültig ab 1. Jänner 2023"]
[]
[null,null,null,"Spieler1","Spieler 2","Mittelwert"]
[null,null,"UNSERE ITNs VOR DEM SPIEL",null,null,{"$f":"(D6+E6)/2","v":0}]
[null,null,"Die ITN unserer Gegners vor dem Spiel",null,null,{"$f":"(D7+E7)/2","v":0}]
[null,null,"Sieg-Erfassung"]
[null,null,"Information zum Spiel"]
[null,null,"Information zum Ergebnis"]
[null,null,"Unsere ITNs NACH DEM SPIEL",{"$f":"IF(Berechnung!B13<1,1,Berechnung!B13)","v":1},{"$f":"IF(Berechnung!C13<1,1,Berechnung!C13)","v":1}]
[null,null,"Die ITNs unserer Gegners nach dem Spiel",{"$f":"IF(Berechnung!B14<1,1,Berechnung!B14)","v":1},{"$f":"IF(Berechnung!C14<1,1,Berechnung!C14)","v":1}]
[]
[null,null,"ACHTUNG: Aufgrund von Rundungsfehlern kann es zu Abweichungen im Tausendstel-Bereich kommen!"]
[]
[null,null,null,"INFORMATIONEN ZUR BERECHNUNG"]
[]
[null,null,null,1,null,null,"ITN vor dem Spiel"]
[{"$nulls":5},"Mittelwert Sieger",{"$f":"IF(Berechnung!B2=3,Rechner!F7,Rechner!F6)","v":0}]
[{"$nulls":5},"Mittelwert Verlierer",{"$f":"IF(Berechnung!B2=2,Rechner!F7,Rechner!F6)","v":0}]
[]
[null,null,null,2,null,"Differenz-Wert (x): Verlierer - Sieger",{"$f":"Berechnung!B7","v":0}]
[{"$nulls":5},"Veränderung für den Verlierer",{"$f":"Berechnung!B10*0.25","v":1.7500000000000002E-2}]
[{"$nulls":5},"Veränderung für den Sieger",{"$f":"Berechnung!B10*(-1)*0.25","v":-1.7500000000000002E-2}]
[]
[null,null,null,3,null,"Bewertung der ITN-Veränderung",{"$f":"IF(OR(Berechnung!D3=0.5,Berechnung!D4=0.5),0.25*0.5,0.5*0.5)","v":0.125}]

{"sheet":"Drop-Downs","index":1,"n_rows":12,"n_cols":1,"rows_kept":12,"cut":false,"hidden":true,"merged":[]}
["Bitte auswählen..."]
["Wir haben gewonnen!"]
["Wir haben verloren."]
[]
["Bitte auswählen..."]
["Spiel hat im Rahmen eines ÖTV- oder ITN-Turniers stattgefunden."]
["Spiel hat im Rahmen der Mannschaftsmeisterschaft stattgefunden."]
["Spiel war ein vereins-internes Einzelspiel."]
[]
["Bitte auswählen..."]
["Normal-Resultat (2 gewonnene Sätze auf 6 mit/ohne MTB im dritten Satz)"]
["Sonder-Resultat (2 kurze Sätze / 1 langer Satz / nur MTB-Zählweise)"]

{"sheet":"Berechnung","index":2,"n_rows":17,"n_cols":4,"rows_kept":17,"cut":false,"hidden":true,"merged":[]}
[null,null,"Sonder-Anzeige","Faktor"]
["Sieg-Erfassung",1,{"$f":"IF(B2=1,\"Bitte wählen Sie unten aus ...\",\"\")","v":"Bitte wählen Sie unten aus ..."},{"$f":"IF(B2=2,-1,1)","v":1}]
["Spiel-Information",1,{"$f":"IF(B3=1,\"Bitte wählen Sie unten aus ...\",\"\")","v":"Bitte wählen Sie unten aus ..."},{"$f":"IF(OR(B3=2,B3=3),1,0.5)","v":0.5}]
["Ergebnis-Information",1,"Bitte wählen Sie unten aus ...",{"$f":"IF(B4=2,1,0.5)","v":0.5}]
[]
["Veränderungswerte"]
["x",{"$f":"IF(B2=2,(Rechner!D7+Rechner!E7)/2-(Rechner!D6+Rechner!E6)/2,(Rechner!D6+Rechner!E6)/2-(Rechner!D7+Rechner!E7)/2)","v":0}]
["d rechnerisch",{"$f":"ROUND(0.25 / (1 + 2.595 * EXP(3.5*B7)),3)","v":7.0000000000000007E-2}]
["d tatsächlich",{"$f":"B8","v":7.0000000000000007E-2}]
["d korrigiert",{"$f":"IF(OR(B3=4,B4=3),B9*0.5,B9)","v":7.0000000000000007E-2}]
[]
[null,"Spieler 1","Spieler 2"]
["Unsere ITNs danach",{"$f":"IF(Berechnung!B2=2,Rechner!D6-Berechnung!B10*0.25,Rechner!D6+Berechnung!B10*0.25)","v":1.7500000000000002E-2},{"$f":"IF(Berechnung!B2=2,Rechner!E6-Berechnung!B10*0.25,Rechner!E6+Berechnung!B10*0.25)","v":1.7500000000000002E-2}]
["Gegner-ITNs danach",{"$f":"IF(Berechnung!B2=2,Rechner!D7+Berechnung!B10*0.25,Rechner!D7-Berechnung!B10*0.25)","v":-1.7500000000000002E-2},{"$f":"IF(Berechnung!B2=2,Rechner!E7+Berechnung!B10*0.25,Rechner!E7-Berechnung!B10*0.25)","v":-1.7500000000000002E-2}]
[]
[]
["0,25 / (1 + 2,595 * EXP(3,5*x))"]